bitfinex/quotes_SOLUSD_20251018
["timestamp","ask_amount","ask_price","bid_price","bid_amount"]
[1760809305961,32.5483601,185.77,185.76,0.2]
[1760809306178,27.47055579,185.77,185.76,0.2]
[1760809306343,3.46286024,185.73,185.72,0.2]
[1760809306757,0.66,185.73,185.72,0.2]
[1760809307064,42.01713268,185.99,185.72,9.71724509]
[1760809307065,22.88,185.79,185.72,9.71724509]
[1760809307239,3.46286024,185.77,185.73,0.67]
[1760809307546,22.88,185.79,185.72,0.2]
[1760809307547,22.88,185.78,185.74,0.67]
[1760809307746,23.54,185.78,185.74,0.67]
[1760809307958,3.46286024,185.75,185.74,0.67]
[1760809308159,3.46286024,185.78,185.75,0.67]
[1760809308342,10.87647521,185.83,185.72,9.04727139]
[1760809308343,3.46286024,185.79,185.76,0.67]
[1760809308854,3.46286024,185.78,185.76,0.67]
[1760809309168,3.46286024,185.77,185.74,0.67]
[1760809309365,3.46286024,185.77,185.75,0.67]
[1760809310346,3.46286024,185.76,185.72,6.25441115]
[1760809310547,3.46286024,185.76,185.73,0.67]
[1760809310777,3.46286024,185.75,185.73,0.67]
[1760809312352,3.46286024,185.74,185.72,5.58441115]
[1760809312552,3.46286024,185.74,185.72,6.25441115]
[1760809312767,4.12286024,185.73,185.72,0.2]
[1760809315367,20.38349525,185.73,185.72,0.2]
[1760809315976,14.99933545,185.73,185.72,0.2]
[1760809316186,20.38349525,185.73,185.72,0.2]
[1760809317488,14.99933545,185.73,185.72,0.2]
[1760809318869,3.46286024,185.73,185.72,0.2]
[1760809320374,4.12286024,185.73,185.72,0.2]
[1760809320768,22.88,185.73,185.72,0.2]
[1760809321074,22.88,185.73,185.72,0.87]
[1760809321075,26.34286024,185.73,185.72,0.87]
[1760809321455,3.46286024,185.73,185.72,0.87]
[1760809321877,3.46286024,185.74,185.72,0.87]
[1760809322279,3.46286024,185.73,185.72,0.2]
[1760809322456,26.34286024,185.73,185.72,0.2]
[1760809322657,27.00286024,185.73,185.72,0.2]
[1760809323277,37.87933545,185.73,185.72,0.2]
[1760809325674,43.26349525,185.73,185.72,0.2]
[1760809326563,46.85828652,185.73,185.72,0.2]
[1760809326989,46.85828652,185.73,185.69,0.2]
[1760809326990,22.88,185.7,185.69,0.2]
[1760809327192,26.34286024,185.7,185.69,0.2]
[1760809327491,32.43788985,185.7,185.69,0.2]
[1760809328673,43.31436506,185.7,185.69,0.2]
[1760809328875,22.88,185.66,185.65,0.2]
[1760809329082,26.34286024,185.66,185.65,0.2]
[1760809329386,4.17286024,185.66,185.65,0.2]
[1760809329786,3.46286024,185.66,185.65,0.2]
[1760809330087,43.31552525,185.66,185.65,0.2]
[1760809330268,23.25269376,185.66,185.65,0.2]
[1760809331361,46.13269376,185.66,185.65,0.2]
[1760809331561,23.25269376,185.66,185.65,0.2]
[1760809331868,17.86650396,185.66,185.65,0.2]
[1760809332188,3.46286024,185.66,185.65,0.85]
[1760809332377,26.34286024,185.66,185.65,0.85]
[1760809332778,26.34286024,185.66,185.65,0.2]
[1760809333771,26.34286024,185.66,185.65,0.91]
[1760809333772,22.88,185.66,185.65,0.91]
[1760809334177,26.34286024,185.66,185.65,0.2]
[1760809334368,32.43905004,185.66,185.65,0.2]
[1760809335185,22.88,185.66,185.65,0.91]
[1760809335382,22.88,185.68,185.65,0.91]
[1760809335584,22.88,185.68,185.66,0.71]
[1760809335769,22.88,185.68,185.67,0.71]
[1760809336081,26.34286024,185.68,185.67,0.71]
[1760809338397,26.34286024,185.68,185.65,0.2]
[1760809338603,3.46286024,185.66,185.65,0.2]
[1760809339104,4.17286024,185.66,185.65,0.2]
[1760809339397,15.04933545,185.66,185.65,0.2]
[1760809339571,7.05702668,185.66,185.65,0.2]
[1760809339778,26.34286024,185.66,185.65,0.2]
[1760809340373,3.46286024,185.66,185.65,0.2]
[1760809340668,31.72905004,185.66,185.65,0.2]
[1760809340873,36.03597336,185.66,185.65,0.2]
[1760809341285,35.32597336,185.66,185.65,0.2]
[1760809341877,29.93978356,185.66,185.65,0.91]
[1760809342080,26.34286024,185.66,185.65,0.91]
[1760809343295,29.94515877,185.66,185.65,0.91]
[1760809343490,26.34286024,185.66,185.65,0.91]
[1760809344483,29.94784958,185.66,185.65,0.91]
[1760809345086,26.34286024,185.66,185.65,0.91]
[1760809347072,29.95205862,185.66,185.65,0.91]
[1760809348379,26.34286024,185.66,185.65,0.91]
[1760809350600,3.46286024,185.66,185.65,0.91]
[1760809351894,2.81650263,185.71,185.65,0.91]
[1760809352099,3.46286024,185.71,185.66,0.71]
[1760809352397,22.88,185.71,185.67,0.71]
[1760809352603,3.46286024,185.68,185.67,0.71]
[1760809354803,3.46286024,185.69,185.67,0.71]
[1760809354982,105.56286024,185.7,185.68,0.71]
[1760809355183,102.1,185.7,185.68,0.71]
[1760809356604,3.46286024,185.73,185.68,9.55824191]
[1760809356905,3.46286024,185.69,185.68,0.71]
[1760809357414,3.46286024,185.7,185.68,0.71]
[1760809357909,3.46286024,185.7,185.69,0.71]
[1760809358105,3.46286024,185.71,185.69,0.71]
[1760809358694,3.46286024,185.73,185.7,0.71]
[1760809358895,3.46286024,185.73,185.71,0.71]
[1760809359205,3.46286024,185.72,185.69,0.71]
[1760809359407,3.46286024,185.7,185.69,0.71]
[1760809359600,3.46286024,185.7,185.66,6.09614923]
[1760809359802,3.46286024,185.7,185.66,0.71]
[1760809359803,3.46286024,185.68,185.66,0.71]
[1760809360601,3.46286024,185.68,185.67,0.71]
[1760809361006,0.71,185.72,185.67,0.71]
[1760809361007,3.46286024,185.69,185.67,0.71]
[1760809361604,3.62300015,185.73,185.68,0.71]
[1760809361804,3.46286024,185.69,185.68,0.71]
[1760809361983,3.46286024,185.7,185.68,0.71]
[1760809362309,3.46286024,185.71,185.69,0.71]
[1760809362613,4.17286024,185.7,185.65,0.2]
[1760809362912,3.46286024,185.67,185.66,0.71]
[1760809363986,4.16286024,185.67,185.65,0.2]
[1760809364202,3.46286024,185.66,185.65,0.2]
[1760809365107,4.16286024,185.66,185.65,0.2]
[1760809367301,3.46286024,185.66,185.65,0.2]
[1760809367999,3.46286024,185.67,185.65,0.9]
[1760809368395,124.98,185.69,185.65,0.9]
[1760809368396,3.46286024,185.66,185.65,0.9]
[1760809369814,3.46286024,185.66,185.65,0.2]
[1760809371596,3.46286024,185.67,185.65,0.9]
[1760809372117,3.46286024,185.67,185.65,0.2]
[1760809372315,3.46286024,185.66,185.65,0.2]
[1760809379601,102.1,185.68,185.65,0.9]
[1760809380007,3.46286024,185.66,185.65,0.9]
[1760809380918,3.46286024,185.66,185.65,0.2]
[1760809381118,3.46286024,185.67,185.65,0.9]
[1760809381321,4.16286024,185.67,185.65,0.2]
[1760809381617,3.46286024,185.66,185.65,0.2]
[1760809381812,3.46286024,185.67,185.65,0.2]
[1760809382199,102.1,185.68,185.65,0.2]
[1760809382512,102.1,185.68,185.66,0.7]
[1760809383198,102.1,185.68,185.67,5.38589971]
[1760809383509,102.1,185.68,185.67,6.08589971]
[1760809386240,102.1,185.68,185.67,9.54875995]
[1760809386599,102.1,185.68,185.67,6.08589971]
[1760809387602,3.46286024,185.72,185.67,9.54875995]
[1760809387808,4.15286024,185.72,185.68,6.08537821]
[1760809388215,3.46286024,185.73,185.69,0.7]
[1760809388412,7.78222646,185.73,185.69,0.7]
[1760809388623,4.15286024,185.73,185.69,0.7]
[1760809388817,7.78222646,185.73,185.69,0.7]
[1760809389014,4.15286024,185.73,185.69,0.7]
[1760809389214,7.78222646,185.73,185.69,0.7]
[1760809389413,7.09222646,185.74,185.7,0.7]
[1760809389606,3.46286024,185.74,185.71,0.7]
[1760809390041,102.1,185.75,185.72,0.7]
[1760809390042,105.56286024,185.75,185.72,0.7]
[1760809390215,102.1,185.75,185.72,0.7]
[1760809391233,3.46286024,185.73,185.68,8.84818106]
[1760809391416,0.69,185.72,185.68,6.08532082]
[1760809391737,3.46286024,185.73,185.69,0.7]
[1760809391908,4.15286024,185.73,185.69,0.7]
[1760809392524,4.15286024,185.73,185.69,6.08516633]
[1760809392707,3.46286024,185.71,185.67,6.08564673]
[1760809392903,106.25286024,185.7,185.66,5.38612275]
[1760809393131,106.25286024,185.7,185.65,14.36615256]
[1760809393132,3.46286024,185.67,185.65,0.2]
[1760809393332,3.46286024,185.66,185.65,0.2]
[1760809393632,4.12286024,185.66,185.65,0.2]
[1760809395137,3.46286024,185.66,185.65,0.2]
[1760809396616,3.46286024,185.67,185.65,0.2]
[1760809397230,0.66,185.72,185.66,0.7]
[1760809397732,3.46286024,185.71,185.66,4.16286024]
[1760809397934,3.46286024,185.71,185.65,19.05262047]
[1760809397935,3.46286024,185.71,185.67,0.7]
[1760809398233,3.46286024,185.69,185.65,6.28642064]
[1760809398533,3.46286024,185.69,185.66,6.08613234]
[1760809398718,3.46286024,185.69,185.66,28.96613234]
[1760809399111,3.46286024,185.69,185.66,6.08613234]
[1760809400413,3.46286024,185.69,185.65,6.28643154]
[1760809400634,3.46286024,185.69,185.65,5.58643154]
[1760809400834,3.46286024,185.69,185.66,0.7]
[1760809401033,0.66,185.68,185.65,0.2]
[1760809401219,3.46286024,185.66,185.65,0.2]
[1760809401425,4.12286024,185.66,185.65,0.2]
[1760809401807,7.75222453,185.66,185.65,0.2]
[1760809402725,7.09222453,185.66,185.65,0.2]
[1760809402928,23.54,185.68,185.65,0.2]
[1760809403234,3.46286024,185.67,185.65,0.2]
[1760809403429,3.46286024,185.66,185.65,0.2]
[1760809412739,4.12286024,185.66,185.65,0.2]
[1760809413327,3.46286024,185.66,185.65,0.2]
[1760809414042,4.12286024,185.66,185.65,0.2]
[1760809415145,3.46286024,185.66,185.65,0.2]
[1760809415935,4.12286024,185.66,185.65,0.2]
[1760809416826,7.75033529,185.66,185.65,0.2]
[1760809417139,9.67366485,185.66,185.65,0.2]
[1760809417340,4.12286024,185.66,185.65,0.2]
[1760809418344,3.46286024,185.66,185.65,0.2]
[1760809429331,3.62678862,185.68,185.65,0.89]
[1760809429525,3.46286024,185.66,185.65,0.89]
[1760809429955,3.46286024,185.66,185.65,0.2]
[1760809436752,4.14286024,185.66,185.65,0.2]
[1760809437360,7.09601844,185.66,185.65,0.2]
[1760809437553,3.46286024,185.66,185.65,0.2]
[1760809438957,3.46286024,185.66,185.65,0.89]
[1760809439157,3.46286024,185.66,185.65,0.2]
[1760809441756,3.63244276,185.7,185.65,9.73924096]
[1760809441959,3.46286024,185.71,185.66,0.69]
[1760809442151,7.09529995,185.7,185.66,0.69]
[1760809442345,3.46286024,185.7,185.66,0.69]
[1760809442744,0.68,185.73,185.66,0.69]
[1760809442745,3.46286024,185.71,185.66,4.15286024]
[1760809442945,3.63254685,185.7,185.67,4.15286024]
[1760809443150,22.88,185.74,185.68,0.69]
[1760809443357,3.46286024,185.72,185.68,0.69]
[1760809443548,3.63250876,185.71,185.69,0.69]
[1760809443755,3.46286024,185.72,185.69,0.69]
[1760809443950,3.63258858,185.71,185.7,0.69]
[1760809444252,3.63258858,185.71,185.67,8.84866002]
[1760809444461,3.46286024,185.72,185.68,0.69]
[1760809444660,7.09552532,185.71,185.69,0.69]
[1760809444844,3.46286024,185.71,185.69,0.69]
[1760809446467,3.46286024,185.7,185.69,0.69]
[1760809446667,3.46286024,185.71,185.69,0.69]
[1760809446866,4.12286024,185.7,185.65,0.91]
[1760809447066,7.35203171,185.75,185.65,0.2]
[1760809447067,3.46286024,185.67,185.65,0.2]
[1760809447447,3.46286024,185.67,185.65,0.91]
[1760809447861,3.46286024,185.68,185.65,0.91]
[1760809451568,5.38440375,185.73,185.65,0.91]
[1760809451775,3.46286024,185.68,185.65,0.91]
[1760809452965,3.46286024,185.68,185.65,0.2]
[1760809453157,3.46286024,185.66,185.65,0.2]
[1760809453672,4.13286024,185.66,185.65,0.2]
[1760809453846,102.1,185.67,185.65,0.2]
[1760809454047,102.1,185.67,185.65,0.88]
[1760809455074,102.1,185.67,185.65,0.2]
[1760809455075,3.46286024,185.66,185.65,0.2]
[1760809455280,4.13286024,185.66,185.65,0.2]
[1760809455574,3.46286024,185.66,185.65,0.2]
[1760809455955,105.56286024,185.67,185.65,0.2]
[1760809456359,3.46286024,185.66,185.65,0.2]
[1760809456968,106.23286024,185.67,185.65,0.2]
[1760809458680,102.1,185.66,185.65,0.2]
[1760809459982,105.56286024,185.66,185.65,0.2]
[1760809460984,102.1,185.66,185.65,0.2]
[1760809461301,102.1,185.66,185.65,0.88]
[1760809462380,102.1,185.66,185.65,0.2]
[1760809464593,106.23286024,185.66,185.65,0.2]
[1760809468567,109.86674026,185.66,185.65,0.2]
[1760809470463,7.76674026,185.66,185.65,0.2]
[1760809471093,7.09674026,185.66,185.65,0.2]
[1760809471470,7.76674026,185.66,185.65,0.2]
[1760809473187,24.02940527,185.66,185.65,0.2]
[1760809473502,24.02940527,185.66,185.63,0.2]
[1760809473503,16.19,185.64,185.63,0.2]
[1760809473673,16.19,185.64,185.6,0.2]
[1760809473674,7.09674026,185.64,185.6,0.2]
[1760809473872,7.09674026,185.64,185.55,0.2]
[1760809473873,10.87647521,185.6,185.55,0.2]
[1760809474093,3.46286024,185.57,185.55,0.2]
[1760809474600,4.13286024,185.57,185.55,0.2]
[1760809476393,20.39813751,185.57,185.55,0.2]
[1760809476582,24.03201753,185.57,185.55,0.2]
[1760809476991,18.64321547,185.57,185.55,0.2]
[1760809477304,15.00933545,185.57,185.55,0.2]
[1760809477601,0.67,185.57,185.55,0.2]
[1760809477779,27.01286024,185.57,185.55,0.2]
[1760809478582,32.4016623,185.57,185.55,0.2]
[1760809478779,43.27813751,185.57,185.55,0.2]
[1760809481306,39.81527727,185.57,185.55,0.2]
[1760809481482,43.27813751,185.57,185.55,0.2]
[1760809484404,42.60813751,185.57,185.55,0.2]
[1760809484584,37.21933545,185.57,185.55,0.2]
[1760809485191,14.33933545,185.57,185.55,0.2]
[1760809486597,3.46286024,185.57,185.55,0.2]
[1760809486803,26.34286024,185.57,185.55,0.9]
[1760809486999,3.46286024,185.57,185.55,0.9]
[1760809487203,37.93933545,185.57,185.55,0.2]
[1760809488496,43.32813751,185.57,185.55,0.2]
[1760809488698,43.32813751,185.57,185.49,0.7]
[1760809488699,33.75647521,185.56,185.49,0.7]
[1760809488883,3.46286024,185.5,185.49,0.7]
[1760809492608,3.46286024,185.5,185.46,0.2]
[1760809492811,5.39028217,185.52,185.47,0.7]
[1760809493005,6.11028217,185.52,185.48,0.7]
[1760809494008,6.11028217,185.52,185.46,0.9]
[1760809494009,3.46286024,185.49,185.46,0.9]
[1760809494219,3.46286024,185.47,185.46,0.9]
[1760809494401,3.46286024,185.47,185.46,0.2]
[1760809495010,3.46286024,185.47,185.46,0.9]
[1760809497292,3.46286024,185.48,185.46,0.9]
[1760809497494,3.46286024,185.48,185.47,0.7]
[1760809500726,3.46286024,185.48,185.46,0.2]
[1760809500902,3.46286024,185.47,185.46,0.9]
[1760809501102,3.46286024,185.47,185.46,0.2]
[1760809501428,3.46286024,185.48,185.46,0.9]
[1760809501602,3.46286024,185.48,185.47,0.7]
[1760809502104,3.46286024,185.49,185.47,0.7]
[1760809502316,102.1,185.51,185.47,0.7]
[1760809502627,3.46286024,185.49,185.48,0.7]
[1760809504626,3.46286024,185.5,185.48,0.7]
[1760809504824,3.46286024,185.49,185.48,0.7]
[1760809505712,3.46286024,185.5,185.48,0.7]
[1760809505918,3.46286024,185.5,185.46,0.2]
[1760809506118,3.46286024,185.5,185.48,0.7]
[1760809506336,3.46286024,185.5,185.49,0.67]
[1760809507440,3.46286024,185.5,185.47,0.67]
[1760809507724,3.46286024,185.48,185.46,0.2]
[1760809507915,3.46286024,185.49,185.46,5.59194944]
[1760809508117,3.46286024,185.5,185.46,5.59194944]
[1760809508322,3.46286024,185.5,185.47,0.67]
[1760809509130,3.46286024,185.48,185.47,0.67]
[1760809509430,3.46286024,185.48,185.46,0.2]
[1760809509735,4.15286024,185.47,185.46,0.2]
[1760809510108,3.46286024,185.47,185.46,0.2]
[1760809510521,4.15286024,185.47,185.46,0.2]
[1760809511112,32.42456779,185.47,185.46,0.2]
[1760809511910,27.03286024,185.47,185.46,0.2]
[1760809513932,32.42456779,185.47,185.46,0.2]
[1760809514226,43.301043,185.47,185.46,0.2]
[1760809515207,27.03286024,185.47,185.46,0.2]
[1760809515419,26.34286024,185.47,185.46,0.2]
[1760809515814,9.55456779,185.47,185.46,0.2]
[1760809516528,13.17662172,185.47,185.46,0.2]
[1760809516729,7.08491417,185.47,185.46,0.2]
[1760809518116,3.46286024,185.47,185.46,0.2]
[1760809518314,7.08898207,185.47,185.46,0.2]
[1760809519130,13.18068962,185.47,185.46,0.2]
[1760809521029,7.08898207,185.47,185.46,0.2]
[1760809522819,7.78898207,185.47,185.46,0.2]
[1760809523035,7.08898207,185.47,185.46,0.2]
[1760809523535,12.48068962,185.47,185.46,0.2]
[1760809526140,7.08898207,185.47,185.46,0.2]
[1760809528836,3.62612183,185.47,185.46,0.2]
[1760809529025,3.46286024,185.47,185.46,0.2]
[1760809529526,7.08843683,185.47,185.46,0.2]
[1760809529834,12.48014438,185.47,185.46,0.2]
[1760809530425,13.18014438,185.47,185.46,0.2]
[1760809531315,24.05661959,185.47,185.46,0.2]
[1760809531636,24.05661959,185.47,185.46,0.91]
[1760809531637,3.46286024,185.47,185.46,0.91]
[1760809535940,3.62611522,185.49,185.46,0.91]
[1760809536129,3.46286024,185.48,185.47,0.71]
[1760809536444,26.50611522,185.49,185.48,0.71]
[1760809536622,29.96897546,185.49,185.48,0.71]
[1760809536940,29.96897546,185.49,185.46,0.2]
[1760809537133,22.88,185.48,185.47,0.71]
[1760809538346,26.34286024,185.48,185.47,0.71]
[1760809540853,27.04286024,185.48,185.46,0.2]
[1760809541023,7.09308079,185.47,185.46,0.2]
[1760809541351,17.969556,185.47,185.46,0.2]
[1760809541541,18.669556,185.47,185.46,0.2]
[1760809541738,21.48959399,185.47,185.46,0.2]
[1760809542948,26.88130154,185.47,185.46,0.2]
[1760809546328,22.88,185.43,185.42,0.7]
[1760809546549,26.34286024,185.43,185.42,0.7]
[1760809552158,36.06985108,185.43,185.38,0.7]
[1760809552454,3.46286024,185.39,185.38,0.7]
[1760809552637,3.46286024,185.39,185.37,0.2]
[1760809552953,3.46286024,185.38,185.37,0.2]
[1760809553737,3.46286024,185.38,185.37,0.9]
[1760809554144,3.46286024,185.39,185.37,0.9]
[1760809554346,3.46286024,185.39,185.38,0.7]
[1760809556463,7.09836144,185.4,185.38,0.7]
[1760809556762,7.09836144,185.41,185.38,0.7]
[1760809556942,3.46286024,185.41,185.38,0.7]
[1760809557261,3.46286024,185.41,185.37,0.2]
[1760809557262,3.46286024,185.41,185.39,0.7]
[1760809557647,3.46286024,185.41,185.37,0.2]
[1760809557648,3.46286024,185.41,185.4,0.7]
[1760809557847,26.34286024,185.42,185.4,0.7]
[1760809558054,26.34286024,185.42,185.37,5.59454278]
[1760809558257,22.88,185.43,185.38,0.7]
[1760809558576,3.46286024,185.48,185.42,3.46286024]
[1760809558745,3.63278467,185.47,185.43,0.7]
[1760809559058,3.46286024,185.48,185.43,0.7]
[1760809559445,7.09564491,185.48,185.43,0.7]
[1760809559657,3.46286024,185.48,185.43,0.7]
[1760809559861,7.09564491,185.48,185.43,0.7]
[1760809560053,3.46286024,185.48,185.43,0.7]
[1760809560368,26.51278467,185.48,185.43,6.09286271]
[1760809560552,3.63278467,185.47,185.44,0.7]
[1760809560950,7.09564491,185.47,185.45,0.7]
[1760809561349,7.09564491,185.47,185.46,0.7]
[1760809561547,105.73278467,185.47,185.43,3.46286024]
[1760809561751,102.1,185.47,185.44,0.7]
[1760809563067,102.1,185.47,185.45,0.7]
[1760809563366,3.46286024,185.46,185.44,0.7]
[1760809565850,3.46286024,185.46,185.42,6.09308051]
[1760809566050,3.46286024,185.46,185.43,0.7]
[1760809566257,3.46286024,185.46,185.44,0.67]
[1760809567357,3.46286024,185.46,185.4,16.94712533]
[1760809567358,7.8054789,185.45,185.4,0.67]
[1760809567544,3.46286024,185.42,185.4,0.67]
[1760809567746,3.46286024,185.43,185.4,0.67]
[1760809568173,3.46286024,185.43,185.41,0.67]
[1760809568574,3.46286024,185.43,185.39,0.67]
[1760809568753,3.46286024,185.43,185.4,0.67]
[1760809569460,3.46286024,185.43,185.38,5.39425613]
[1760809569461,3.46286024,185.42,185.38,5.39425613]
[1760809569769,3.46286024,185.42,185.39,0.67]
[1760809570351,3.46286024,185.41,185.37,6.26454385]
[1760809570572,3.46286024,185.41,185.38,0.67]
[1760809571359,3.46286024,185.39,185.37,0.2]
[1760809571768,3.46286024,185.39,185.37,0.87]
[1760809572556,3.46286024,185.4,185.37,0.87]
[1760809573377,3.46286024,185.39,185.37,0.87]
[1760809573572,3.46286024,185.39,185.37,0.2]
[1760809573759,3.46286024,185.39,185.37,0.9]
[1760809574982,3.46286024,185.39,185.37,0.2]
[1760809575287,3.46286024,185.39,185.37,0.9]
[1760809575569,3.46286024,185.39,185.37,0.2]
[1760809575778,3.46286024,185.39,185.38,0.7]
[1760809576788,3.46286024,185.42,185.38,0.7]
[1760809576975,105.56286024,185.41,185.38,0.7]
[1760809577165,102.1,185.41,185.39,0.7]
[1760809577563,102.1,185.41,185.37,5.59461398]
[1760809577756,102.1,185.41,185.4,0.7]
[1760809578069,102.1,185.41,185.38,0.7]
[1760809578271,102.1,185.41,185.39,0.7]
[1760809578869,102.1,185.41,185.4,0.7]
[1760809579964,102.1,185.41,185.38,0.7]
[1760809581165,3.46286024,185.4,185.37,0.2]
[1760809581478,3.46286024,185.39,185.37,0.9]
[1760809581660,105.56286024,185.41,185.38,0.7]
[1760809581860,102.1,185.41,185.38,0.7]
[1760809582278,102.1,185.41,185.37,5.59454353]
[1760809582585,102.1,185.41,185.39,0.7]
[1760809583161,102.1,185.41,185.4,0.7]
[1760809584470,102.1,185.41,185.38,0.7]
[1760809584676,102.1,185.41,185.39,0.7]
[1760809585874,102.1,185.41,185.4,0.7]
[1760809586486,102.1,185.41,185.4,4.16286024]
[1760809586982,102.1,185.41,185.4,0.7]
[1760809587367,102.1,185.41,185.4,4.16286024]
[1760809587569,0.7,185.48,185.4,4.16286024]
[1760809587793,7.79725985,185.47,185.42,5.39316147]
[1760809588079,4.16286024,185.47,185.43,0.7]
[1760809588380,0.7,185.46,185.43,0.7]
[1760809588973,3.46286024,185.47,185.43,0.7]
[1760809589280,7.79725985,185.47,185.43,0.7]
[1760809589489,4.16286024,185.47,185.43,0.7]
[1760809589674,7.79725985,185.47,185.43,0.7]
[1760809589986,3.46286024,185.47,185.44,0.7]
[1760809590187,7.09725985,185.47,185.44,0.7]
[1760809590363,3.46286024,185.47,185.44,0.7]
[1760809590560,7.09725985,185.47,185.44,0.7]
[1760809590878,102.1,185.49,185.45,4.16286024]
[1760809591083,102.1,185.49,185.46,0.7]
[1760809591395,102.1,185.49,185.47,0.7]
[1760809593886,0.7,185.52,185.48,4.16286024]
[1760809594083,0.7,185.52,185.48,3.46286024]
[1760809594266,4.16286024,185.52,185.48,0.7]
[1760809594473,4.16286024,185.51,185.46,5.39188461]
[1760809594687,3.46286024,185.51,185.46,5.39188461]
[1760809594888,4.16286024,185.51,185.47,0.7]
[1760809595687,4.16286024,185.51,185.47,6.09159474]
[1760809596428,26.34286024,185.48,185.37,0.2]
[1760809596568,3.46286024,185.46,185.41,0.7]
[1760809596769,3.46286024,185.46,185.42,0.7]
[1760809597088,3.46286024,185.46,185.43,0.7]
[1760809597263,3.46286024,185.48,185.44,0.7]
[1760809597467,27.04286024,185.49,185.44,5.39250387]
[1760809597689,27.04286024,185.49,185.45,0.7]
[1760809597889,22.88,185.49,185.46,0.7]
[1760809598695,23.58,185.49,185.45,5.39218966]
[1760809598907,0.7,185.49,185.45,6.09218966]
[1760809599205,3.62637852,185.51,185.45,5.39218966]
[1760809599494,3.46286024,185.46,185.41,17.646189]
[1760809599789,4.16286024,185.45,185.41,14.18332876]
[1760809600385,4.16286024,185.45,185.42,5.39314701]
[1760809600582,3.46286024,185.45,185.41,18.8767811]
[1760809600786,3.46286024,185.45,185.42,0.7]
[1760809601494,102.8,185.47,185.42,0.7]
[1760809601495,3.46286024,185.46,185.42,0.7]
[1760809601792,4.16286024,185.46,185.43,5.39287062]
[1760809603575,102.1,185.47,185.41,18.87649061]
[1760809603576,3.46286024,185.45,185.41,18.87649061]
[1760809603798,4.11286024,185.44,185.41,5.39316185]
[1760809603975,4.11286024,185.44,185.41,6.10316185]
[1760809604298,3.46286024,185.44,185.41,6.10316185]
[1760809605011,3.46286024,185.44,185.42,6.10305716]
[1760809605175,3.46286024,185.45,185.42,6.10305716]
[1760809605889,0.65,185.46,185.42,5.39305716]
[1760809606088,102.1,185.47,185.41,5.39345234]
[1760809606288,3.46286024,185.45,185.41,5.39345234]
[1760809606499,102.1,185.47,185.43,3.46286024]
[1760809606690,102.1,185.47,185.44,0.71]
[1760809606876,102.1,185.47,185.45,0.71]
[1760809608574,4.11286024,185.46,185.42,6.10310757]
[1760809608794,3.46286024,185.45,185.42,6.10310757]
[1760809609178,3.46286024,185.44,185.42,6.10310757]
[1760809609495,4.11286024,185.46,185.42,6.10310757]
[1760809609707,3.46286024,185.46,185.43,0.71]
[1760809609880,105.56286024,185.47,185.43,0.71]
[1760809610199,106.21286024,185.47,185.43,0.71]
[1760809610375,3.46286024,185.46,185.43,0.71]
[1760809611199,3.46286024,185.46,185.43,6.10279713]
[1760809611702,106.21286024,185.47,185.43,6.10279713]
[1760809611888,105.56286024,185.47,185.44,0.71]
[1760809612198,102.1,185.47,185.45,0.71]
[1760809612376,102.1,185.46,185.45,0.71]
[1760809612572,102.1,185.46,185.43,9.56565737]
[1760809612880,102.1,185.46,185.44,0.71]
[1760809613590,102.1,185.46,185.45,0.71]
[1760809614682,102.1,185.46,185.45,6.10228902]